bitfinex/quotes_BTCUSD_20250901
["timestamp","ask_amount","ask_price","bid_price","bid_amount"]
[1756698999768,0.15044759,107770.0,107760.0,0.77795763]
[1756698999971,0.10044759,107770.0,107760.0,0.77795763]
[1756699000214,0.10044759,107770.0,107760.0,1.17795763]
[1756699000418,0.46414675,107770.0,107760.0,1.17795763]
[1756699001449,0.41414675,107770.0,107760.0,1.17795763]
[1756699001620,0.05044759,107770.0,107760.0,1.17795763]
[1756699001838,0.41414675,107770.0,107760.0,1.17795763]
[1756699002219,0.46414675,107770.0,107760.0,1.17795763]
[1756699002426,0.41414675,107770.0,107760.0,1.17795763]
[1756699002623,0.46414675,107770.0,107760.0,1.17795763]
[1756699002881,0.10044759,107770.0,107760.0,1.17795763]
[1756699003101,0.41414675,107770.0,107760.0,1.17895763]
[1756699003292,0.46414675,107770.0,107760.0,1.17995763]
[1756699003502,0.05044759,107770.0,107760.0,1.17995763]
[1756699003644,0.0504,107780.0,107770.0,0.5255804]
[1756699003645,0.0004,107780.0,107770.0,0.5255804]
[1756699003832,0.0504,107780.0,107770.0,0.8594948]
[1756699004105,0.0004,107780.0,107770.0,0.8594948]
[1756699004475,0.0504,107780.0,107770.0,1.2594948]
[1756699004652,0.0004,107780.0,107770.0,1.2594948]
[1756699004867,0.0004,107780.0,107770.0,1.62319396]
[1756699005076,0.0004,107780.0,107770.0,1.65106296]
[1756699005298,0.00011324,107780.0,107770.0,1.2873638]
[1756699006381,0.00011324,107780.0,107770.0,1.2872438]
[1756699008284,0.00011324,107780.0,107770.0,1.2882438]
[1756699008682,0.00011324,107780.0,107770.0,1.2892438]
[1756699009570,4.604e-05,107780.0,107770.0,1.2892438]
[1756699012331,4.604e-05,107780.0,107770.0,1.1294438]
[1756699012539,4.604e-05,107780.0,107770.0,1.2893238]
[1756699012738,4.604e-05,107780.0,107770.0,1.1294438]
[1756699012937,4.604e-05,107780.0,107770.0,1.2892438]
[1756699013161,4.604e-05,107780.0,107770.0,1.65294296]
[1756699014552,4.604e-05,107780.0,107770.0,1.2892438]
[1756699014710,4.604e-05,107780.0,107770.0,1.65294296]
[1756699017266,4.604e-05,107780.0,107770.0,1.2892438]
[1756699017469,4.604e-05,107780.0,107770.0,1.65270296]
[1756699017789,4.604e-05,107780.0,107770.0,1.2889638]
[1756699017965,4.604e-05,107780.0,107770.0,1.1294438]
[1756699018185,4.604e-05,107780.0,107770.0,1.2889638]
[1756699020328,4.604e-05,107780.0,107770.0,1.1294438]
[1756699020553,4.604e-05,107780.0,107770.0,1.2888438]
[1756699026410,6.04e-06,107780.0,107770.0,1.2888438]
[1756699026766,6.04e-06,107780.0,107770.0,1.65254296]
[1756699028117,6.04e-06,107780.0,107770.0,1.2888438]
[1756699028299,6.04e-06,107780.0,107770.0,1.65254296]
[1756699030116,6.04e-06,107780.0,107770.0,1.2888438]
[1756699030312,0.1959461,107790.0,107780.0,0.38556318]
[1756699030503,0.1959461,107790.0,107780.0,0.64728216]
[1756699030942,0.1959461,107790.0,107780.0,1.04728216]
[1756699031121,0.0104,107790.0,107780.0,1.04728216]
[1756699031319,0.01270742,107790.0,107780.0,1.04728216]
[1756699031755,0.0104,107790.0,107780.0,1.04728216]
[1756699033528,0.00435824,107790.0,107780.0,1.04728216]
[1756699033914,0.19221162,107790.0,107780.0,1.04716216]
[1756699034101,0.1899042,107790.0,107780.0,1.04716216]
[1756699034542,0.1899042,107790.0,107780.0,0.88824216]
[1756699034744,0.1899042,107790.0,107780.0,1.04716216]
[1756699035274,0.00435824,107790.0,107780.0,1.04716216]
[1756699035486,0.00666566,107790.0,107780.0,1.04716216]
[1756699035664,0.19221162,107790.0,107780.0,1.08966372]
[1756699035903,0.1899042,107790.0,107780.0,1.08966372]
[1756699037773,0.00435824,107790.0,107780.0,1.08966372]
[1756699038056,0.00666566,107790.0,107780.0,1.04712216]
[1756699038540,0.00666566,107790.0,107780.0,1.07499116]
[1756699039497,0.0029696,107790.0,107780.0,1.07499116]
[1756699040861,0.0029696,107790.0,107780.0,1.11631235]
[1756699043896,0.0029696,107790.0,107780.0,1.11603235]
[1756699044106,0.0004,107800.0,107790.0,0.52554596]
[1756699044307,0.05279574,107800.0,107790.0,0.85810036]
[1756699044738,0.05279574,107800.0,107790.0,1.25814036]
[1756699044927,0.05279574,107800.0,107790.0,1.28600636]
[1756699046947,0.05048832,107800.0,107790.0,1.28600636]
[1756699048235,0.05048832,107800.0,107790.0,1.12736636]
[1756699048424,0.05048832,107800.0,107790.0,1.28592636]
[1756699048579,0.05279574,107800.0,107790.0,1.28592636]
[1756699048785,0.05279574,107800.0,107790.0,1.12736636]
[1756699048986,0.05279574,107800.0,107790.0,1.28584636]
[1756699050254,0.05279574,107800.0,107790.0,1.12736636]
[1756699050577,0.05279574,107800.0,107790.0,1.28584636]
[1756699052878,0.05279574,107800.0,107790.0,1.28568636]
[1756699053650,0.05279574,107800.0,107790.0,1.28564636]
[1756699053854,0.65202365,107800.0,107790.0,0.03756039]
[1756699054060,1.37856935,107800.0,107790.0,0.03756039]
[1756699054261,0.64971623,107800.0,107790.0,0.19584039]
[1756699054560,0.67758823,107800.0,107790.0,0.16797439]
[1756699054990,0.67758823,107800.0,107790.0,0.00969439]
[1756699055113,0.67858823,107800.0,107790.0,0.16797439]
[1756699055309,0.67758823,107800.0,107790.0,0.16797439]
[1756699055623,0.67858823,107800.0,107790.0,0.16797439]
[1756699059169,0.31488907,107800.0,107790.0,0.16797439]
[1756699059375,0.67858823,107800.0,107790.0,0.16797439]
[1756699059777,0.67858823,107800.0,107790.0,0.00969439]
[1756699059971,0.67858823,107800.0,107790.0,0.16785439]
[1756699060963,0.31488907,107800.0,107790.0,0.16785439]
[1756699061210,0.67858823,107800.0,107790.0,0.16785439]
[1756699061404,0.65071623,107800.0,107790.0,0.16785439]
[1756699061785,0.67858823,107800.0,107790.0,0.16785439]
[1756699061979,0.65071623,107800.0,107790.0,0.16785439]
[1756699062380,0.64971623,107800.0,107790.0,0.16785439]
[1756699063192,1.09331623,107800.0,107790.0,0.16785439]
[1756699063521,1.09431623,107800.0,107790.0,0.16785439]
[1756699064898,1.09331623,107800.0,107790.0,0.16785439]
[1756699065098,1.09331623,107800.0,107790.0,0.35340035]
[1756699065302,1.09331623,107800.0,107790.0,0.16785439]
[1756699065497,1.09331623,107800.0,107790.0,0.35340035]
[1756699067211,1.09331623,107800.0,107790.0,0.16785439]
[1756699067497,0.72961707,107800.0,107790.0,0.16785439]
[1756699067915,1.09331623,107800.0,107790.0,0.16785439]
[1756699068122,1.09331623,107800.0,107790.0,0.35340035]
[1756699069533,1.09331623,107800.0,107790.0,0.16785439]
[1756699071308,1.09331623,107800.0,107790.0,0.35340035]
[1756699071770,1.09331623,107800.0,107790.0,0.00969439]
[1756699071973,1.09331623,107800.0,107790.0,0.16741439]
[1756699072470,1.09431623,107800.0,107790.0,0.16741439]
[1756699073168,1.09331623,107800.0,107790.0,0.16741439]
[1756699073765,1.09331623,107800.0,107790.0,0.35296035]
[1756699074369,1.09331623,107800.0,107790.0,0.34368596]
[1756699075972,0.05048832,107800.0,107790.0,0.77666597]
[1756699076169,0.05279574,107800.0,107790.0,0.84794597]
[1756699076371,0.05048832,107800.0,107790.0,0.87581197]
[1756699079245,0.05048832,107800.0,107790.0,1.27581197]
[1756699080622,0.05048832,107800.0,107790.0,1.47581197]
[1756699080826,0.0504,107810.0,107800.0,0.52552875]
[1756699081021,0.05087587,107810.0,107800.0,0.63748212]
[1756699081524,0.05087587,107810.0,107800.0,0.66534712]
[1756699081731,0.05087587,107810.0,107800.0,1.06534712]
[1756699082459,0.05087587,107810.0,107800.0,1.42904628]
[1756699083424,0.05087587,107810.0,107800.0,1.06534712]
[1756699084053,0.05087587,107810.0,107800.0,1.22298712]
[1756699084445,0.05087587,107810.0,107800.0,1.06534712]
[1756699084645,0.05087587,107810.0,107800.0,1.22298712]
[1756699091506,0.00087587,107810.0,107800.0,1.58668628]
[1756699091887,0.00087587,107810.0,107800.0,1.06534712]
[1756699092081,0.00087587,107810.0,107800.0,1.58664628]
[1756699092907,0.00087587,107810.0,107800.0,1.58964628]
[1756699093148,0.00087587,107810.0,107800.0,1.43204628]
[1756699093365,0.00087587,107810.0,107800.0,1.58964628]
[1756699094039,0.00087587,107810.0,107800.0,1.43204628]
[1756699094243,0.00087587,107810.0,107800.0,1.59164628]
[1756699096171,0.00087587,107810.0,107800.0,1.43404628]
[1756699096409,0.00087587,107810.0,107800.0,1.59164628]
[1756699101211,0.00087587,107810.0,107800.0,1.22794712]
[1756699101428,0.00087587,107810.0,107800.0,1.59164628]
[1756699102476,0.00038211,107810.0,107800.0,1.59164628]
[1756699106401,0.00038211,107810.0,107800.0,1.22794712]
[1756699106621,0.00038211,107810.0,107800.0,1.59164628]
[1756699108188,0.00038211,107810.0,107800.0,1.22034712]
[1756699108346,0.00038211,107810.0,107800.0,1.71350834]
[1756699108555,0.00016753,107810.0,107800.0,1.71350834]
[1756699108928,0.00016753,107810.0,107800.0,1.37790712]
[1756699109149,0.00016753,107810.0,107800.0,2.04910956]
[1756699110046,0.00016753,107810.0,107800.0,2.04904108]
[1756699110520,0.00016753,107810.0,107800.0,1.74022148]
[1756699111518,0.00016753,107810.0,107800.0,1.72166812]
[1756699114520,7.361e-05,107810.0,107800.0,1.72166812]
[1756699114721,7.361e-05,107810.0,107800.0,1.20179376]
[1756699115103,7.361e-05,107810.0,107800.0,1.35935376]
[1756699116675,7.361e-05,107810.0,107800.0,1.20179376]
[1756699116874,7.361e-05,107810.0,107800.0,1.35935376]
[1756699117285,7.361e-05,107810.0,107800.0,1.35435376]
[1756699117489,7.361e-05,107810.0,107800.0,1.35431376]
[1756699118107,7.361e-05,107810.0,107800.0,1.19679376]
[1756699118319,7.361e-05,107810.0,107800.0,1.35731376]
[1756699118841,0.54789951,107810.0,107800.0,1.35731376]
[1756699119182,0.36238797,107810.0,107800.0,1.35931376]
[1756699119352,7.361e-05,107810.0,107800.0,1.35931376]
[1756699119567,7.361e-05,107810.0,107800.0,1.35731376]
[1756699119970,7.361e-05,107810.0,107800.0,1.35831376]
[1756699120167,7.361e-05,107810.0,107800.0,1.20079376]
[1756699120369,0.18558515,107810.0,107800.0,1.35831376]
[1756699120575,0.52614,107810.0,107800.0,1.35831376]
[1756699120917,0.64820964,107820.0,107810.0,0.52551154]
[1756699121113,0.64825719,107820.0,107810.0,0.79498491]
[1756699121288,0.64825719,107820.0,107810.0,0.60947337]
[1756699121496,0.28594283,107820.0,107810.0,0.60947337]
[1756699121692,0.64825719,107820.0,107810.0,0.45195337]
[1756699121893,0.64825719,107820.0,107810.0,0.60947337]
[1756699123710,0.28594283,107820.0,107810.0,0.60947337]
[1756699123936,0.64825719,107820.0,107810.0,0.60947337]
[1756699124629,0.64825719,107820.0,107810.0,0.65028586]
[1756699125255,1.37288591,107820.0,107810.0,0.55730585]
[1756699125663,0.64825719,107820.0,107810.0,0.55730585]
[1756699127795,0.64925719,107820.0,107810.0,0.74281739]
[1756699128004,0.64825719,107820.0,107810.0,0.74281739]
[1756699128634,0.28594283,107820.0,107810.0,0.74281739]
[1756699128874,0.64825719,107820.0,107810.0,0.74281739]
[1756699130076,0.64834934,107820.0,107810.0,0.74281739]
[1756699130277,0.95724797,107820.0,107810.0,0.74281739]
[1756699130905,0.95724797,107820.0,107810.0,0.39978585]
[1756699131123,1.96420568,107820.0,107810.0,0.05978585]
[1756699131291,1.96420568,107820.0,107810.0,0.21730585]
[1756699131492,1.99207368,107820.0,107810.0,0.05978585]
[1756699131694,2.14959368,107820.0,107810.0,0.01897336]
[1756699131893,2.14959368,107820.0,107810.0,0.01855336]
[1756699132162,2.15030323,107820.0,107810.0,0.01855336]
[1756699132352,1.60898062,107820.0,107810.0,0.01855336]
[1756699132668,1.60998062,107820.0,107810.0,0.01855336]
[1756699133192,0.31481083,107820.0,107810.0,0.01855336]
[1756699133430,0.67736076,107820.0,107810.0,0.01855336]
[1756699133637,0.67636076,107820.0,107810.0,0.06095773]
[1756699133853,0.67636076,107820.0,107810.0,0.15077773]
[1756699134060,1.40146062,107820.0,107810.0,0.30829773]
[1756699134376,1.40146062,107820.0,107810.0,0.21847773]
[1756699135210,1.40446062,107820.0,107810.0,0.21847773]
[1756699135831,1.40146062,107820.0,107810.0,0.21847773]
[1756699136035,1.40146062,107820.0,107810.0,0.30829773]
[1756699136241,1.40246062,107820.0,107810.0,0.30829773]
[1756699137882,1.40246062,107820.0,107810.0,0.26589336]
[1756699138420,1.40246062,107820.0,107810.0,0.10837336]
[1756699138629,1.40246062,107820.0,107810.0,0.26589336]
[1756699138832,1.40246062,107820.0,107810.0,0.30673509]
[1756699139626,0.83488076,107820.0,107810.0,0.30673509]
[1756699140539,0.67736076,107820.0,107810.0,0.30673509]
[1756699141147,0.67736076,107820.0,107810.0,0.14921509]
[1756699141350,0.67736076,107820.0,107810.0,0.30673509]
[1756699143593,0.31481083,107820.0,107810.0,0.30673509]
[1756699143797,0.10144755,107820.0,107810.0,0.99650664]
[1756699145749,0.05044755,107820.0,107810.0,0.99127664]
[1756699146007,0.00044755,107820.0,107810.0,1.55382657]
[1756699146227,0.00144755,107820.0,107810.0,1.19127664]
[1756699146431,0.00144755,107820.0,107810.0,1.58168657]
[1756699146629,0.00044755,107820.0,107810.0,1.42416657]
[1756699146838,0.00044755,107820.0,107810.0,1.58164657]
[1756699147041,0.00044755,107820.0,107810.0,1.21909664]
[1756699147470,1.06,107830.0,107820.0,0.67549434]
[1756699147678,1.06,107830.0,107820.0,1.42084428]
[1756699147876,1.06,107830.0,107820.0,1.05829435]
[1756699148057,1.06,107830.0,107820.0,1.24363135]
[1756699148240,1.06,107830.0,107820.0,1.26042487]
[1756699148679,1.47254993,107830.0,107820.0,1.06042487]
[1756699148932,1.47254993,107830.0,107820.0,1.03256787]
[1756699149069,1.11,107830.0,107820.0,1.03256787]
[1756699149268,1.11,107830.0,107820.0,1.43256787]
[1756699150898,1.65802706,107830.0,107820.0,1.28256787]
[1756699151106,1.47254993,107830.0,107820.0,1.28256787]
[1756699151258,1.47254993,107830.0,107820.0,0.88256787]
[1756699151865,1.65802706,107830.0,107820.0,0.88256787]
[1756699152477,1.47254993,107830.0,107820.0,0.88256787]
[1756699152690,1.65802706,107830.0,107820.0,0.88246792]
[1756699154418,1.65802706,107830.0,107820.0,0.72498792]
[1756699154567,1.65802706,107830.0,107820.0,0.88242792]
[1756699154968,1.29547713,107830.0,107820.0,0.88242792]
[1756699155186,1.65802706,107830.0,107820.0,0.88242792]
[1756699156459,1.65802706,107830.0,107820.0,0.24726]
[1756699157793,1.65902706,107830.0,107820.0,0.24726]
[1756699157977,1.65902706,107830.0,107820.0,0.08982]
[1756699158276,1.81646706,107830.0,107820.0,0.24726]
[1756699160043,1.29647713,107830.0,107820.0,0.24726]
[1756699160266,1.65902706,107830.0,107820.0,0.43275434]
[1756699160518,1.65902706,107830.0,107820.0,0.24726]
[1756699161009,1.29647713,107830.0,107820.0,0.24726]
[1756699161221,1.65902706,107830.0,107820.0,0.08982]
[1756699161453,1.81646706,107830.0,107820.0,0.24726]
[1756699161667,1.45391713,107830.0,107820.0,0.24726]
[1756699161868,1.81646706,107830.0,107820.0,0.24726]
[1756699163117,1.81646706,107830.0,107820.0,0.08982]
[1756699163959,1.45391713,107830.0,107820.0,0.08982]
[1756699164168,1.81646706,107830.0,107820.0,0.08982]
[1756699164636,1.81646706,107830.0,107820.0,0.24726]
[1756699166233,1.81646706,107830.0,107820.0,0.08982]
[1756699170276,1.65902706,107830.0,107820.0,0.08982]
[1756699170476,1.81642706,107830.0,107820.0,0.08982]
[1756699171691,1.93724082,107830.0,107820.0,0.08982]
[1756699171894,2.66234068,107830.0,107820.0,0.08982]
[1756699172100,1.84429106,107830.0,107820.0,0.08982]
[1756699175788,2.28789106,107830.0,107820.0,0.08982]
[1756699178081,2.28780334,107830.0,107820.0,0.08982]
[1756699178283,2.59674845,107830.0,107820.0,0.08982]
[1756699178693,3.7897892,107830.0,107820.0,0.08982]
[1756699178963,3.7897492,107830.0,107820.0,0.08982]
[1756699179134,0.90691886,107810.0,107800.0,0.15]
[1756699179312,1.11427886,107810.0,107800.0,0.16337091]
[1756699179501,1.11427886,107810.0,107800.0,0.20489337]
[1756699180324,1.14214786,107810.0,107800.0,0.20489337]
[1756699180528,1.14214786,107810.0,107800.0,0.20589337]
[1756699180734,1.14214786,107810.0,107800.0,0.20689337]
[1756699181175,1.14214786,107810.0,107800.0,0.05589337]
[1756699181418,0.98478786,107810.0,107800.0,0.07559337]
[1756699181907,1.14214786,107810.0,107800.0,0.07559337]
[1756699182143,1.14239822,107810.0,107800.0,0.07559337]
[1756699182347,0.92628723,107810.0,107800.0,0.07559337]
[1756699183230,0.92628723,107810.0,107800.0,0.0663144]
[1756699183448,0.92628723,107810.0,107800.0,0.06227001]
[1756699183936,2.2593411,107810.0,107800.0,0.02074755]
[1756699184603,2.2593411,107810.0,107800.0,0.03002652]
[1756699185010,2.1019811,107810.0,107800.0,0.03002652]
[1756699185240,2.2593411,107810.0,107800.0,0.03002652]
[1756699185668,2.1019811,107810.0,107800.0,0.03002652]
[1756699185877,2.2593411,107810.0,107800.0,0.03002652]
[1756699189008,2.15639134,107810.0,107800.0,0.03002652]
[1756699190755,0.28552875,107800.0,107790.0,0.00404439]
[1756699190971,1.62365955,107800.0,107790.0,0.00404439]
[1756699191184,1.46629955,107800.0,107790.0,0.00404439]
[1756699191390,1.49417555,107800.0,107790.0,0.00404439]
[1756699191600,1.65153555,107800.0,107790.0,0.00404439]
[1756699192221,1.66701348,107800.0,107790.0,0.00404439]
[1756699192428,1.66701348,107800.0,107790.0,0.00504439]
[1756699192645,1.66701348,107800.0,107790.0,0.00404439]
[1756699193067,1.66901348,107800.0,107790.0,0.00404439]
[1756699193485,1.66901348,107800.0,107790.0,0.00504439]
[1756699193892,1.66901348,107800.0,107790.0,0.00404439]
[1756699194299,1.67001348,107800.0,107790.0,0.00404439]
[1756699200220,0.28556318,107780.0,107770.0,0.0721143]
[1756699200415,0.18559762,107760.0,107750.0,0.0721143]
[1756699200630,1.32338841,107760.0,107750.0,0.50509431]
[1756699200845,0.64819455,107760.0,107750.0,0.50509431]
[1756699201051,0.64819455,107760.0,107750.0,0.43298001]
[1756699201537,0.80551455,107760.0,107750.0,0.43298001]
[1756699201740,0.80551455,107760.0,107750.0,0.43345588]
[1756699201955,0.80551455,107760.0,107750.0,0.45161771]
[1756699202365,1.53070841,107760.0,107750.0,0.45161771]
[1756699202573,1.53070841,107760.0,107750.0,0.34347587]
[1756699202811,1.53070841,107760.0,107750.0,0.34647587]
[1756699203652,1.53070841,107760.0,107750.0,0.38494652]
[1756699203863,1.53070841,107760.0,107750.0,0.38394652]
[1756699204294,1.53070841,107760.0,107750.0,0.38594652]
[1756699204892,1.53070841,107760.0,107750.0,0.38394652]
[1756699205094,1.52570841,107760.0,107750.0,0.38194652]
[1756699205313,1.52670841,107760.0,107750.0,0.04194652]
[1756699209056,1.36938841,107760.0,107750.0,0.04194652]
[1756699209276,1.52670841,107760.0,107750.0,0.04194652]
[1756699210342,0.43887762,107760.0,107750.0,0.04194652]
[1756699210606,1.55455041,107760.0,107750.0,0.04194652]
[1756699210833,0.82935655,107760.0,107750.0,0.04194652]
[1756699211252,0.46675962,107760.0,107750.0,0.04194652]
[1756699211466,1.55455041,107760.0,107750.0,0.04194652]
[1756699211889,1.60455041,107760.0,107750.0,0.04194652]
[1756699212311,0.87935655,107760.0,107750.0,0.04194652]
[1756699213345,1.60455041,107760.0,107750.0,0.04194652]
[1756699215282,1.44727041,107760.0,107750.0,0.04194652]
[1756699215480,1.60455041,107760.0,107750.0,0.04194652]
[1756699216617,0.51675962,107760.0,107750.0,0.04194652]
[1756699216822,0.35947962,107760.0,107750.0,0.22756136]
[1756699217019,0.51675962,107760.0,107750.0,0.22756136]
[1756699217786,0.51675962,107760.0,107750.0,0.04194652]
[1756699218401,0.48887762,107760.0,107750.0,0.04194652]
[1756699218601,0.85147455,107760.0,107750.0,0.04194652]
[1756699219182,0.85147455,107760.0,107750.0,0.22756136]
[1756699219419,0.48887762,107760.0,107750.0,0.04194652]
[1756699219589,0.48887762,107760.0,107750.0,0.22756136]
[1756699221461,0.33159762,107760.0,107750.0,0.22756136]
[1756699221628,0.33159762,107760.0,107750.0,0.04194652]
[1756699221828,0.33122828,107760.0,107750.0,0.04194652]
[1756699222251,0.33122828,107760.0,107750.0,0.22756136]
[1756699222678,0.33022828,107760.0,107750.0,0.04194652]
[1756699223056,0.33022828,107760.0,107750.0,0.04294652]
[1756699223269,0.48746828,107760.0,107750.0,0.04294652]
[1756699223659,0.33022828,107760.0,107750.0,0.04294652]
[1756699223860,0.33022828,107760.0,107750.0,0.04394652]
[1756699224061,0.48746828,107760.0,107750.0,0.04394652]
[1756699224292,0.33022828,107760.0,107750.0,0.04394652]
[1756699224736,0.48746828,107760.0,107750.0,0.04394652]
[1756699225166,0.33022828,107760.0,107750.0,0.04394652]
[1756699225367,0.48746828,107760.0,107750.0,0.04394652]
[1756699226031,0.33022828,107760.0,107750.0,0.04394652]
[1756699226475,0.48746828,107760.0,107750.0,0.04394652]
[1756699227895,0.33022828,107760.0,107750.0,0.04394652]
[1756699228274,0.48746828,107760.0,107750.0,0.04394652]
[1756699228983,0.33022828,107760.0,107750.0,0.04394652]
[1756699229205,0.48746828,107760.0,107750.0,0.04394652]
[1756699229426,0.33022828,107760.0,107750.0,0.04394652]
[1756699229675,0.48746828,107760.0,107750.0,0.04394652]
[1756699232102,0.33022828,107760.0,107750.0,0.04394652]
[1756699236377,0.33022828,107760.0,107750.0,0.20114652]
[1756699238241,0.33022828,107760.0,107750.0,0.04394652]
[1756699238428,0.66544304,107760.0,107750.0,0.04394652]
[1756699239407,0.66544304,107760.0,107750.0,0.04294652]
[1756699239889,0.66544304,107760.0,107750.0,0.04194652]
[1756699240308,0.66644304,107760.0,107750.0,0.04194652]
[1756699243975,1.0016578,107760.0,107750.0,0.04194652]
[1756699244179,0.51627328,107760.0,107750.0,0.04194652]
[1756699244390,0.85148804,107760.0,107750.0,0.04194652]
[1756699246705,1.1867028,107760.0,107750.0,0.04194652]
[1756699247119,1.6303028,107760.0,107750.0,0.04194652]
[1756699248557,0.95987328,107760.0,107750.0,0.04194652]
[1756699248776,1.6303028,107760.0,107750.0,0.04194652]
[1756699250022,0.95983328,107760.0,107750.0,0.04194652]
[1756699250241,1.6302628,107760.0,107750.0,0.04194652]
[1756699250743,1.4731428,107760.0,107750.0,0.04194652]
[1756699250943,1.6302628,107760.0,107750.0,0.04194652]
[1756699252563,0.75271328,107760.0,107750.0,0.04194652]
[1756699252801,1.29504804,107760.0,107750.0,0.04194652]
[1756699252980,1.13792804,107760.0,107750.0,0.04194652]
[1756699253541,1.29504804,107760.0,107750.0,0.04194652]
[1756699254506,0.95983328,107760.0,107750.0,0.04194652]
[1756699255096,1.29504804,107760.0,107750.0,0.04194652]
[1756699257640,1.6302628,107760.0,107750.0,0.04194652]
[1756699258070,1.29504804,107760.0,107750.0,0.04194652]
[1756699258283,0.95983328,107760.0,107750.0,0.04194652]
[1756699258490,1.29504804,107760.0,107750.0,0.04194652]
[1756699258904,1.29504804,107760.0,107750.0,0.00047587]
[1756699259046,1.29500804,107760.0,107750.0,0.00047587]
[1756699260138,1.29500804,107760.0,107750.0,0.04217227]
[1756699261457,1.6302228,107760.0,107750.0,0.04217227]
[1756699261950,1.29500804,107760.0,107750.0,0.04217227]
[1756699262511,0.80271328,107760.0,107750.0,0.04217227]
[1756699262719,1.29500804,107760.0,107750.0,0.04217227]
[1756699264367,1.08792804,107760.0,107750.0,0.04217227]
[1756699264730,1.29500804,107760.0,107750.0,0.04217227]
[1756699265081,1.13792804,107760.0,107750.0,0.04217227]
[1756699265289,0.95979328,107760.0,107750.0,0.04217227]
[1756699265494,1.29500804,107760.0,107750.0,0.04217227]
[1756699266015,1.63037366,107760.0,107750.0,0.04217227]
[1756699269155,1.18677366,107760.0,107750.0,0.04217227]
[1756699270629,1.62924987,107760.0,107750.0,1e-08]
[1756699271879,1.61504386,107760.0,107750.0,1e-08]
[1756699272106,1.28006145,107760.0,107750.0,1e-08]
[1756699274554,1.64100027,107760.0,107750.0,1e-08]
[1756699276401,1.31744182,107750.0,107740.0,1e-08]
[1756699276601,1.63878183,107750.0,107740.0,1e-08]
[1756699276870,0.96789367,107750.0,107740.0,1e-08]
[1756699277117,0.97789367,107750.0,107740.0,1e-08]
[1756699278030,0.98389367,107750.0,107740.0,1e-08]
[1756699278673,0.98589367,107750.0,107740.0,1e-08]
[1756699279315,0.97989367,107750.0,107740.0,1e-08]
[1756699279489,0.98389367,107750.0,107740.0,1e-08]
[1756699279697,1.07684343,107750.0,107740.0,1e-08]
[1756699280698,1.12684343,107750.0,107740.0,1e-08]
[1756699281995,0.96980343,107750.0,107740.0,1e-08]
[1756699282204,1.12684343,107750.0,107740.0,1e-08]
[1756699282607,0.96980343,107750.0,107740.0,1e-08]
[1756699282811,1.12684343,107750.0,107740.0,1e-08]
[1756699287760,1.03027435,107750.0,107740.0,1e-08]
[1756699289542,0.98027435,107750.0,107740.0,1e-08]
[1756699289743,1.03027435,107750.0,107740.0,1e-08]
[1756699290705,0.98027435,107750.0,107740.0,1e-08]
[1756699290908,1.03027435,107750.0,107740.0,1e-08]
[1756699293099,1.07002734,107750.0,107740.0,1e-08]
[1756699293668,1.31385696,107730.0,107720.0,1e-08]
[1756699293851,1.63523697,107730.0,107720.0,1e-08]
[1756699294056,1.29979289,107730.0,107720.0,1e-08]
[1756699294264,1.30351289,107730.0,107720.0,1e-08]
[1756699294479,0.28204722,107720.0,107710.0,1e-08]
[1756699294675,0.53206723,107720.0,107710.0,1e-08]
[1756699295689,0.55996623,107720.0,107710.0,1e-08]
[1756699295896,0.40292623,107720.0,107710.0,1e-08]
[1756699296202,0.55996623,107720.0,107710.0,1e-08]
[1756699296793,0.40292623,107720.0,107710.0,1e-08]
[1756699296923,0.57308129,107720.0,107710.0,1e-08]
[1756699298281,0.41904129,107720.0,107710.0,1e-08]
[1756699298496,0.56296623,107720.0,107710.0,1e-08]
[1756699298691,0.89541031,107720.0,107710.0,1e-08]
[1756699299100,0.89841031,107720.0,107710.0,1e-08]
[1756699299331,0.56296623,107720.0,107710.0,1e-08]
[1756699300039,0.56496623,107720.0,107710.0,1e-08]
[1756699300365,0.56296623,107720.0,107710.0,1e-08]
[1756699300766,0.56196623,107720.0,107710.0,1e-08]
[1756699301173,0.56496623,107720.0,107710.0,1e-08]
[1756699301372,0.56196623,107720.0,107710.0,1e-08]
[1756699301886,0.56496623,107720.0,107710.0,1e-08]
[1756699304947,0.31494622,107720.0,107710.0,1e-08]
[1756699305254,0.47198622,107720.0,107710.0,1e-08]
[1756699305477,0.8074303,107720.0,107710.0,1e-08]
[1756699305887,0.8054303,107720.0,107710.0,1e-08]
[1756699306389,0.8074303,107720.0,107710.0,1e-08]
[1756699306546,0.8044303,107720.0,107710.0,1e-08]
[1756699306782,0.8054303,107720.0,107710.0,1e-08]
[1756699307012,0.8034303,107720.0,107710.0,1e-08]
[1756699307669,0.8054303,107720.0,107710.0,1e-08]
[1756699308339,0.6483903,107720.0,107710.0,1e-08]
[1756699308538,0.46994622,107720.0,107710.0,1e-08]
[1756699310810,0.8053903,107720.0,107710.0,1e-08]
[1756699312198,0.46994622,107720.0,107710.0,1e-08]
[1756699312405,0.8053903,107720.0,107710.0,1e-08]
[1756699312605,0.46994622,107720.0,107710.0,1e-08]
[1756699312850,0.42356554,107720.0,107710.0,0.87544409]
[1756699313291,0.44204722,107720.0,107710.0,0.87544409]
[1756699313495,0.44104722,107720.0,107710.0,0.87544409]
[1756699313916,0.43904722,107720.0,107710.0,0.87544409]
[1756699314120,0.43904722,107720.0,107710.0,0.54000001]
[1756699314350,0.43904722,107720.0,107710.0,0.87544409]
[1756699314761,0.44004722,107720.0,107710.0,0.87544409]
[1756699315322,0.43904722,107720.0,107710.0,0.87544409]
[1756699316277,0.44104722,107720.0,107710.0,0.87544409]
[1756699316477,0.43904722,107720.0,107710.0,0.87544409]
[1756699320335,0.05,107720.0,107710.0,1.35410788]
[1756699320549,0.05,107730.0,107720.0,0.67566654]
[1756699320824,0.2356493,107730.0,107720.0,1.10409063]
[1756699321027,0.2356493,107730.0,107720.0,1.26105063]
[1756699321232,0.05,107730.0,107720.0,1.26105063]
[1756699321851,0.05,107730.0,107720.0,0.92560655]
[1756699322053,0.05,107730.0,107720.0,1.26105063]
[1756699322269,0.05,107730.0,107720.0,1.26205063]
[1756699322421,0.2356493,107730.0,107720.0,0.19807064]
[1756699322617,0.2356493,107730.0,107720.0,0.54069718]
[1756699323230,0.05,107730.0,107720.0,0.54069718]
[1756699323611,0.2356493,107730.0,107720.0,0.54069718]
[1756699323812,0.05,107730.0,107720.0,0.54169718]
[1756699324463,0.05,107730.0,107720.0,0.69169718]
[1756699324661,0.29131009,107740.0,107730.0,0.4]
[1756699324872,0.63131009,107740.0,107730.0,1.01407339]
[1756699325242,0.63131009,107740.0,107730.0,0.49298001]
[1756699325447,0.63131009,107740.0,107730.0,0.82842409]
[1756699326100,0.63131009,107740.0,107730.0,1.01407339]
[1756699326306,0.63131009,107740.0,107730.0,0.82842409]
[1756699326822,0.63131009,107740.0,107730.0,1.01407339]
[1756699327265,0.63131009,107740.0,107730.0,0.82842409]
[1756699328408,0.29131009,107740.0,107730.0,1.01407339]
[1756699329494,0.18563207,107740.0,107730.0,1.01407339]
[1756699329705,0.28201275,107740.0,107730.0,1.01407339]